fUST/lending_fUST_20250308
["ID","MTS","AMOUNT","RATE_DAILY","PERIOD"]
[355619235,1741395039336,-1240.5,0.00058478,72]
[355619236,1741395039348,-37238.6708736,0.0005849,5]
[355619237,1741395039358,-531.02965752,0.0005849,5]
[355619238,1741395039367,-10000.0,0.000585,120]
[355619239,1741395039376,-500.0,0.0005863,120]
[355619240,1741395039387,-500.0,0.0005863,120]
[355619241,1741395039396,-385.60770601,0.0005863,120]
[355619242,1741395039406,-500.0,0.0005863,120]
[355619243,1741395039417,-613.05,0.0005863,7]
[355619244,1741395039426,-500.0,0.0005863,120]
[355619245,1741395039440,-500.0,0.00058773,15]
[355619246,1741395039449,-150.0,0.00058773,10]
[355619247,1741395039459,-37238.6708736,0.0005879,5]
[355619248,1741395039468,-531.02965752,0.0005879,5]
[355619249,1741395039478,-5000.0,0.0005879,120]
[355619250,1741395039487,-5000.0,0.0005879,120]
[355619251,1741395039496,-2081.355545,0.0005879,120]
[355619252,1741395039506,-37238.6708736,0.0005879,5]
[355619253,1741395039515,-1828.7616849,0.0005879,5]
[355619254,1741395039528,-4590.0377152,0.0005879,5]
[355619311,1741395044698,-500.0,0.00054794,120]
[355619312,1741395044707,-484.58614766,0.0005879,5]
[355619313,1741395044717,-6903.42146811,0.000588,40]
[355619328,1741395634437,-183.0,0.00045,120]
[355619329,1741395634461,-21.017126,0.00048194,7]
[355619330,1741395637870,-204.017126,0.00048194,7]
[355619331,1741395641564,-204.017126,0.00048194,7]
[355619332,1741395645349,-204.017126,0.00048495,96]
[355619333,1741395651254,-204.017126,0.00048194,7]
[355619334,1741395937113,-1366.931496,0.00048194,7]
[355619335,1741395937135,-500.0,0.00048195,91]
[355619336,1741395937156,-432.74060673,0.00048295,93]
[355619337,1741395951242,162.734074,0.0003589,2]
[355619338,1741396026086,-162.734074,0.00043112,2]
[355619339,1741396026108,-166.0,0.000467,120]
[355619340,1741396026130,-67.25939327,0.00048295,93]
[355619341,1741396026151,-886.49328844,0.00048295,120]
[355619342,1741396026172,-500.0,0.00048395,93]
[355619343,1741396026194,-295.982874,0.00048495,96]
[355619344,1741396026215,-500.0,0.00048595,90]
[355619345,1741396026236,-500.0,0.00048695,94]
[355619346,1741396026257,-500.0,0.00048795,100]
[355619347,1741396026278,-500.0,0.00048895,91]
[355619348,1741396026298,-500.0,0.00048995,99]
[355619349,1741396026319,-500.0,0.00049095,93]
[355619350,1741396026340,-500.0,0.00049195,100]
[355619351,1741396026361,-500.0,0.00049295,97]
[355619352,1741396026382,-331.51539874,0.00049395,91]
[355619353,1741396040088,-168.48460126,0.00049395,91]
[355619354,1741396040109,-230.51475225,0.00049473,10]
[355619355,1741396040144,-500.0,0.00049495,96]
[355619356,1741396040167,-151.24,0.000495,2]
[355619357,1741396040191,-500.0,0.00049595,92]
[355619358,1741396040214,-500.0,0.00049695,97]
[355619359,1741396040238,-202.08946668,0.00049795,93]
[355619360,1741396042147,-297.91053332,0.00049795,93]
[355619361,1741396042168,-500.0,0.00049895,100]
[355619362,1741396042190,-368.08208256,0.00049995,91]
[355619363,1741396045081,-131.91791744,0.00049995,91]
[355619364,1741396045102,-183.0,0.0005,120]
[355619365,1741396045123,-500.0,0.00050095,98]
[355619366,1741396045146,-200.0,0.00050095,120]
[355619367,1741396045167,-500.0,0.00050195,94]
[355619368,1741396045188,-500.0,0.00050295,94]
[355619369,1741396045210,-162.734074,0.00050333,2]
[355619370,1741396045230,-500.0,0.00050395,90]
[355619371,1741396045251,-500.0,0.00050495,96]
[355619372,1741396045271,-500.0,0.00050595,98]
[355619373,1741396045292,-500.0,0.00050695,98]
[355619374,1741396045312,-500.0,0.00050795,98]
[355619375,1741396045334,-500.0,0.00050895,97]
[355619376,1741396045354,-500.0,0.00050995,92]
[355619377,1741396045375,-500.0,0.00051095,93]
[355619378,1741396045395,-500.0,0.00051195,90]
[355619379,1741396045416,-500.0,0.00051295,91]
[355619380,1741396045437,-500.0,0.00051395,99]
[355619381,1741396045457,-500.0,0.00051495,97]
[355619382,1741396045477,-500.0,0.00051595,97]
[355619383,1741396045498,-500.0,0.00051695,94]
[355619384,1741396045518,-500.0,0.00051795,100]
[355619385,1741396045539,-500.0,0.00051895,93]
[355619386,1741396045560,-500.0,0.00051995,91]
[355619387,1741396045581,-500.0,0.00052095,92]
[355619388,1741396045601,-500.0,0.00052195,97]
[355619389,1741396045622,-500.0,0.00052295,90]
[355619390,1741396045643,-500.0,0.00052395,99]
[355619391,1741396045663,-500.0,0.00052495,100]
[355619392,1741396045684,-500.0,0.00052595,94]
[355619393,1741396045707,-500.0,0.00052695,97]
[355619394,1741396045728,-500.0,0.00052795,94]
[355619395,1741396045749,-500.0,0.00052895,97]
[355619396,1741396045769,-500.0,0.00052995,96]
[355619397,1741396045792,-500.0,0.00053095,90]
[355619398,1741396045813,-500.0,0.00053195,92]
[355619399,1741396045835,-500.0,0.00053295,98]
[355619400,1741396045856,-500.0,0.00053395,96]
[355619401,1741396045878,-166.0,0.000534,120]
[355619402,1741396045899,-500.0,0.00053495,96]
[355619403,1741396045920,-500.0,0.00053595,91]
[355619404,1741396045940,-500.0,0.00053695,98]
[355619405,1741396045962,-664.52578864,0.00053695,28]
[355619406,1741396045984,-500.0,0.00053795,96]
[355619407,1741396046005,-500.0,0.00053895,93]
[355619408,1741396046026,-500.0,0.00053995,98]
[355619409,1741396046049,-4880.05,0.00054,90]
[355619410,1741396046070,-500.0,0.00054095,95]
[355619411,1741396046091,-500.0,0.00054195,93]
[355619412,1741396046112,-500.0,0.00054773,10]
[355619413,1741396046133,-999.0,0.00054783,120]
[355619414,1741396046154,-14187.56805236,0.00054784,4]
[355619415,1741396054123,-1023.29883872,0.00054784,4]
[355619423,1741396146138,-436.90442822,0.00054794,120]
[355619424,1741396146160,-500.0,0.00054794,120]
[355619425,1741396146181,-500.0,0.00054794,120]
[355619426,1741396146202,-500.0,0.00054794,120]
[355619427,1741396146222,-502.91135543,0.00054794,120]
[355619428,1741396146243,-500.0,0.00054794,120]
[355619429,1741396146264,-666.0,0.00054794,120]
[355619430,1741396146285,-500.0,0.00054794,120]
[355619431,1741396146305,-500.0,0.00054794,120]
[355619432,1741396146325,-500.0,0.00054794,120]
[355619433,1741396146344,-515.4805487,0.00054794,120]
[355619434,1741396146365,-500.0,0.00054794,120]
[355619435,1741396146386,-4182.19,0.00054794,120]
[355619436,1741396146407,-846.86,0.00054794,120]
[355619437,1741396146431,-500.0,0.00054794,120]
[355619438,1741396146452,-524.41593913,0.00054794,120]
[355619439,1741396146472,-500.0,0.00054794,120]
[355619440,1741396146493,-536.42,0.00054794,7]
[355619441,1741396146515,-500.0,0.00054794,120]
[355619442,1741396146535,-2500.0,0.00054794,120]
[355619443,1741396146565,-500.0,0.00054794,120]
[355619444,1741396146592,-183.0,0.00055,120]
[355619445,1741396146619,-500.0,0.0005502,15]
[355619446,1741396146644,-500.0,0.0005502,10]
[355619447,1741396146668,-500.0,0.00055342,120]
[355619448,1741396146692,-500.0,0.00055342,120]
[355619449,1741396146718,-493.36831422,0.00055342,120]
[355619450,1741396146749,-500.0,0.00055342,120]
[355619451,1741396146775,-500.0,0.00055342,120]
[355619452,1741396146801,-500.0,0.00055342,120]
[355619453,1741396146829,-500.0,0.00055342,120]
[355619454,1741396146853,-4182.19,0.00055342,120]
[355619455,1741396146880,-846.86,0.00055342,120]
[355619456,1741396146904,-500.0,0.00055342,120]
[355619457,1741396146930,-500.0,0.00055342,120]
[355619458,1741396146954,-536.42,0.00055342,7]
[355619459,1741396146978,-500.0,0.00055342,120]
[355619460,1741396147001,-500.0,0.00055342,120]
[355619461,1741396147024,-150.0,0.000554,4]
[355619462,1741396147048,-500.0,0.0005589,120]
[355619463,1741396147071,-500.0,0.0005589,120]
[355619464,1741396147097,-500.0,0.0005589,120]
[355619465,1741396147121,-500.0,0.0005589,120]
[355619466,1741396147146,-500.0,0.0005589,120]
[355619467,1741396147170,-500.0,0.0005589,120]
[355619468,1741396147192,-4182.19,0.0005589,120]
[355619469,1741396147215,-846.86,0.0005589,120]
[355619470,1741396147240,-399.94,0.0005589,120]
[355619471,1741396147263,-500.0,0.0005589,120]
[355619472,1741396147289,-536.42,0.0005589,7]
[355619473,1741396147315,-500.0,0.0005589,120]
[355619474,1741396147340,-500.0,0.0005589,120]
[355619475,1741396147365,-6000.0,0.00056,120]
[355619476,1741396147390,-500.0,0.00056438,120]
[355619477,1741396147414,-385.60770601,0.00056438,120]
[355619478,1741396147437,-500.0,0.00056438,120]
[355619479,1741396147461,-500.0,0.00056438,120]
[355619480,1741396147487,-500.0,0.00056438,120]
[355619481,1741396147514,-4182.19,0.00056438,120]
[355619482,1741396147538,-846.86,0.00056438,120]
[355619483,1741396147561,-500.0,0.00056438,120]
[355619484,1741396147583,-536.42,0.00056438,7]
[355619485,1741396147604,-500.0,0.00056438,120]
[355619486,1741396147627,-500.0,0.00056438,120]
[355619487,1741396147650,-247.62,0.00056966,30]
[355619488,1741396147675,-499.0,0.00056973,15]
[355619489,1741396147698,-500.0,0.00056973,14]
[355619490,1741396147728,-501.12293708,0.00056973,15]
[355619491,1741396147749,-500.0,0.00056973,15]
[355619492,1741396147773,-500.0,0.00056973,15]
[355619493,1741396147795,-500.0,0.00056973,2]
[355619494,1741396147820,-500.0,0.00056973,15]
[355619495,1741396147843,-500.0,0.00056973,15]
[355619496,1741396147865,-500.0,0.00056973,15]
[355619497,1741396147906,-500.0,0.00056973,15]
[355619498,1741396147932,-500.0,0.00056973,14]
[355619499,1741396147958,-500.0,0.00056973,14]
[355619500,1741396147986,-500.0,0.00056973,15]
[355619501,1741396148011,-500.0,0.00056973,15]
[355619502,1741396148034,-500.0,0.00056973,15]
[355619503,1741396148060,-500.0,0.00056973,15]
[355619504,1741396148087,-500.0,0.00056973,15]
[355619505,1741396148113,-520.83415375,0.00056973,15]
[355619506,1741396148139,-500.0,0.00056973,15]
[355619507,1741396148333,-500.0,0.00056973,14]
[355619508,1741396148356,-500.0,0.00056986,120]
[355619509,1741396148377,-500.0,0.00056986,120]
[355619510,1741396148400,-500.0,0.00056986,120]
[355619511,1741396148422,-500.0,0.00056986,120]
[355619512,1741396148442,-4182.19,0.00056986,120]
[355619513,1741396148468,-846.86,0.00056986,120]
[355619514,1741396148509,-500.0,0.00056986,120]
[355619515,1741396148549,-536.42,0.00056986,7]
[355619516,1741396148585,-500.0,0.00056986,120]
[355619517,1741396148606,-409.15308678,0.00056986,120]
[355619518,1741396148626,-247.95,0.0005699,10]
[355619519,1741396148647,-1130.91970582,0.00057,120]
[355619520,1741396148667,-3196.0,0.00057,30]
[355619521,1741396148687,-150.0,0.00057373,15]
[355619522,1741396148708,-254.72972561,0.00057373,15]
[355619523,1741396148731,-357.04,0.0005738,10]
[355619524,1741396148751,-297.53,0.0005738,10]
[355619525,1741396148773,-40936.7488986,0.0005739,5]
[355619526,1741396148793,-49847.2895,0.000574,30]
[355619527,1741396148814,-200.0,0.00057437,120]
[355619528,1741396148835,-5000.0,0.000575,120]
[355619529,1741396148855,-5000.0,0.000575,120]
[355619530,1741396148877,-5000.0,0.000575,120]
[355619531,1741396148898,-40936.7488986,0.00057524,5]
[355619532,1741396148922,-500.0,0.00057534,120]
[355619533,1741396148944,-500.0,0.00057534,120]
[355619534,1741396148965,-500.0,0.00057534,120]
[355619535,1741396148987,-500.0,0.00057534,120]
[355619536,1741396149009,-4182.19,0.00057534,120]
[355619537,1741396149031,-846.86,0.00057534,120]
[355619538,1741396149052,-500.0,0.00057534,120]
[355619539,1741396149076,-536.42,0.00057534,7]
[355619540,1741396149099,-500.0,0.00057534,120]
[355619541,1741396149132,-162.734074,0.00057554,2]
[355619542,1741396149174,-5000.00000099,0.00057777,120]
[355619543,1741396149215,-150.0,0.00057873,15]
[355619544,1741396149249,-40936.7488986,0.0005789,5]
[355619545,1741396149271,-55555.0,0.000579,120]
[355619546,1741396149293,-500.0,0.0005792,120]
[355619547,1741396149314,-150.0,0.00057973,10]
[355619548,1741396149335,-58177.23253641,0.0005799,5]
[355619645,1741396237825,-860.95,0.0004949,10]
[355619648,1741396237839,-500174.3617015,0.000495,30]
[355619650,1741396237848,-1006.0,0.00049558,30]
[355619652,1741396237857,-21919.47693122,0.00049558,120]
[355619654,1741396237867,-159.96524006,0.000496,10]
[355619656,1741396237876,-206.62,0.0004999,10]
[355619658,1741396237885,-172.18,0.0004999,10]
[355619660,1741396237895,-705.94159178,0.0005,40]
[355619662,1741396237904,-90914.48844325,0.0005,5]
[355619664,1741396237915,-1280494.9083202,0.0005,120]
[355619666,1741396237927,-1503.6736983,0.0005,120]
[355619667,1741396238531,-4786.08842583,0.0005,120]
[355619727,1741396242855,-7393.03317864,0.0005,120]
[355619755,1741396246015,-111.85437301,0.00049458,120]
[355619756,1741396291115,2450.0,0.0004,2]
[355619757,1741396291137,1904.88746033,0.0004,2]
[355619758,1741396291159,2450.0,0.0004,2]
[355619759,1741396291179,2462.43372486,0.0004,2]
[355619760,1741396291198,2450.0,0.0004,2]
[355619761,1741396291222,38119.94471481,0.0004,2]
[355619762,1741396313104,11717.3212,0.0004,2]
[355619770,1741396354265,50000.0,0.0004,2]
[355619771,1741396355444,-175.0,0.00044,120]
[355619772,1741396374886,49825.0,0.00045,2]
[355619776,1741396737256,50000.0,0.00035,2]
[355619777,1741397130119,-166.541772,0.0003589,2]
[355619778,1741397130140,-108.42543828,0.00036283,2]
[355619781,1741397225079,-376.53909973,0.00036283,2]
[355619782,1741397225102,-355.1389536,0.00038803,2]
[355619783,1741397225127,-233.8321,0.000432,120]
[355619784,1741397225149,-166.541772,0.00043667,2]
[355619785,1741397225170,-979.51020947,0.000449,120]
[355619786,1741397226091,-20.48979053,0.000449,120]
[355619787,1741397226117,-686.82375615,0.000449,120]
[355619788,1741397226139,-1200.0,0.00045,120]
[355619789,1741397226162,-154.13625,0.00045418,120]
[355619790,1741397226185,-169.347,0.00045418,120]
[355619791,1741397226209,-230.51475225,0.00046914,10]
[355619792,1741397226231,-150.0,0.000479,2]
[355619793,1741397226252,-175.0,0.00048,120]
[355619794,1741397226274,-4613.78405354,0.00048,120]
[355619795,1741397248126,-186.0,0.000467,120]
[355619796,1741397248149,-8458.43475636,0.00048,120]
[355619797,1741397249081,-270.46125656,0.00048,120]
[355619798,1741397271504,46500.0,0.00018,2]
[355619799,1741397271531,50000.0,0.00018,2]
[355619800,1741397271558,21670.29001077,0.00018,2]
[355619805,1741397353109,-5000.0,0.0003224,2]
[355619806,1741397353133,-159.0,0.000429,120]
[355619807,1741397353159,-18721.76879305,0.00043,7]
[355619816,1741397365093,-159.0,0.000458,120]
[355619817,1741397365115,-200.0,0.00047991,120]
[355619818,1741397365137,-8197.30080522,0.00048,120]
[355619819,1741397365526,-7247.4083426,0.00048,120]
[355619820,1741397366074,-3015.76918372,0.00048,120]
[355619821,1741397366096,-763.71844891,0.00048252,28]
[355619822,1741397366119,-200.0,0.00048352,120]
[355619823,1741397366142,-159.0,0.000487,120]
[355619824,1741397366166,-407.70331238,0.00049,30]
[355619825,1741397366187,-407.70331238,0.00049,30]
[355619826,1741397366210,-3101.10930609,0.0004935,2]
[355619827,1741397366232,-500.0,0.000494,7]
[355619828,1741397366254,-344.33537435,0.00049414,10]
[355619829,1741397366275,-500.0,0.0004942,2]
[355619830,1741397366295,-318.66250715,0.00049499,10]
[355619831,1741397366315,-25355.43,0.000495,120]
[355619832,1741397366336,-860.24,0.00049545,10]
[355619833,1741397366357,-626.23,0.00049545,10]
[355619834,1741397366377,-951.25411985,0.00049554,30]
[355619835,1741397366404,-500.0,0.00049554,2]
[355619836,1741397366429,-500.0,0.00049554,2]
[355619837,1741397366453,-500.0,0.00049554,2]
[355619838,1741397366477,-500.0,0.00049554,2]
[355619839,1741397366501,-500.0,0.00049554,2]
[355619840,1741397366525,-500.0,0.00049554,2]
[355619841,1741397366549,-500.0,0.00049554,2]
[355619842,1741397366574,-500.0,0.00049554,2]
[355619843,1741397366597,-500.0,0.00049554,2]
[355619844,1741397366620,-500.0,0.00049554,2]
[355619845,1741397366643,-500.0,0.00049554,2]
[355619846,1741397366666,-500.0,0.00049554,2]
[355619847,1741397366689,-493.34946914,0.00049554,2]
[355619848,1741397366713,-500.0,0.00049554,2]
[355619849,1741397366738,-500.0,0.00049554,2]
[355619850,1741397366762,-500.0,0.00049554,2]
[355619851,1741397366785,-500.0,0.00049554,2]
[355619852,1741397366808,-500.0,0.00049554,2]
[355619853,1741397366830,-500.0,0.00049554,2]
[355619854,1741397366853,-500.0,0.00049554,2]
[355619855,1741397366875,-500.0,0.00049554,2]
[355619856,1741397366897,-500.0,0.00049554,2]
[355619857,1741397366920,-160.0,0.00049759,2]
[355619858,1741397366941,-384.35354904,0.0004979,2]
[355619859,1741397366962,-1200.0,0.0004987,120]
[355619860,1741397366985,-1200.0,0.0004987,120]
[355619861,1741397367006,-500.0,0.00049873,10]
[355619862,1741397367026,-406.76418997,0.00049873,10]
[355619863,1741397367047,-500.0,0.00049873,10]
[355619864,1741397367068,-500.0,0.00049873,10]
[355619865,1741397367088,-500.0,0.00049873,2]
[355619866,1741397367109,-500.0,0.00049873,10]
[355619867,1741397367130,-500.0,0.00049873,10]
[355619868,1741397367154,-500.0,0.00049873,10]
[355619869,1741397367175,-500.0,0.00049873,10]
[355619870,1741397367199,-500.0,0.00049873,10]
[355619871,1741397367220,-22205.52254702,0.00049879,4]
[355619921,1741397432169,-400.72496527,0.00049,120]
[355619923,1741397432178,-1537.41419608,0.00049455,2]
[355619925,1741397432193,-1462.57767527,0.000495,30]
[355619932,1741397432416,-19363.01833911,0.000495,30]
[355619933,1741397432427,-38185.43176605,0.000495,30]
[355619934,1741397435087,202.95959,0.000432,120]
[355619935,1741397436669,250.45961,0.000432,120]
[355620016,1741397443358,-152.78281551,0.00049499,31]
[355620017,1741397443369,-155.39213649,0.00049499,31]
[355620018,1741397443378,-500.0,0.00049499,2]
[355620019,1741397443388,-500.0,0.00049499,2]
[355620020,1741397443397,-443.81788336,0.00049499,2]
[355620021,1741397443407,-982.9291148,0.000495,30]
[355620025,1741397446093,-262.18480817,0.00049,30]
[355620026,1741397446102,-251138.04423771,0.000495,30]
[355620027,1741397446114,-258.249,0.000495,30]
[355620032,1741398106220,2000.0,0.00016021,120]
[355620033,1741398344082,-150.0,0.00027123,7]
[355620034,1741398344101,-150.0,0.00027123,7]
[355620035,1741398344122,-166.884728,0.0003589,2]
[355620036,1741398344143,-281.8503388,0.00041545,2]
[355620037,1741398344163,-167.0,0.00042,120]
[355620038,1741398344184,-166.884728,0.0004263,2]
[355620039,1741398344205,-167.0,0.00044,120]
[355620040,1741398344236,-167.0,0.00046,120]
[355620041,1741398344257,-167.0,0.00048,120]
[355620042,1741398344277,-193.03695665,0.000488,120]
[355620043,1741398344298,-566.49975918,0.000489,120]
[355620044,1741398404191,-206.90415627,0.00048999,5]
[355620045,1741398426075,-262.18480817,0.00049,30]
[355620046,1741398426098,-157.80722084,0.00049,30]
[355620047,1741398436077,-7494.64677567,0.00049,30]
[355620048,1741398443089,-2334.31552558,0.00049,30]
[355620049,1741398443111,-9986.76952209,0.00049,30]
[355620050,1741398443134,-10255.55109347,0.00049,7]
[355620051,1741398444161,-7836.64258147,0.00049,7]
[355620052,1741398444183,-400.72496527,0.00049,120]
[355620053,1741398444331,-162.89098081,0.00049,120]
[355620054,1741398444353,-311.5624086,0.00049331,2]
[355620055,1741398444375,-311.5624086,0.00049359,2]
[355620056,1741398444396,-166.884728,0.0004937,2]
[355620057,1741398444418,-504.33401234,0.00049373,10]
[355620058,1741398444438,-501.62720872,0.00049373,7]
[355620059,1741398444458,-311.5624086,0.00049386,2]
[355620060,1741398444481,-999.0,0.00049399,120]
[355620061,1741398444502,-5000.0,0.000494,120]
[355620062,1741398444526,-5000.0,0.000494,120]
[355620063,1741398444547,-311.5624086,0.00049414,2]
[355620064,1741398444567,-620.92,0.00049421,10]
[355620065,1741398444590,-31752.846289,0.00049428,4]
[355620066,1741398448079,-157.1565454,0.000489,28]
[355620071,1741398562103,-458.88,0.000486,8]
[355620072,1741398562125,-682.7755453,0.000489,28]
[355620073,1741398562146,-790.81218869,0.00049341,120]
[355620074,1741398562168,-213.488269,0.00049438,120]
[355620075,1741398562188,-380.0,0.0004944,5]
[355620076,1741398562209,-311.5624086,0.00049441,2]
[355620077,1741398562230,-7838.18584812,0.00049441,2]
[355620078,1741398562250,-55555.0,0.00049441,120]
[355620079,1741398562270,-742.26485591,0.00049449,60]
[355620080,1741398562290,-6000.0,0.000495,120]
[355620081,1741398562312,-500.0,0.0004952,2]
[355620082,1741398562333,-518.5,0.0004952,2]
[355620083,1741398562353,-537.6845,0.0004952,2]
[355620084,1741398562374,-557.5788265,0.0004952,2]
[355620085,1741398562396,-811.44288839,0.0004952,2]
[355620086,1741398562417,-38804.0431131,0.00049531,4]
[355620087,1741398562442,-500.0,0.00049539,2]
[355620088,1741398562465,-500.0,0.00049539,120]
[355620089,1741398562488,-324.87577346,0.00049539,31]
[355620090,1741398562512,-500.0,0.00049539,2]
[355620091,1741398562535,-500.0,0.00049539,120]
[355620092,1741398562562,-600.31700274,0.00049539,120]
[355620093,1741398562587,-500.0,0.00049539,2]
[355620094,1741398562611,-352.19471684,0.00049539,2]
[355620095,1741398562633,-116412.129339,0.0004954,4]
[355620096,1741398562654,-5050.88742206,0.00049541,40]
[355620097,1741398562676,-22279.74728378,0.00049541,40]
[355620098,1741398562700,-151.0,0.00049541,90]
[355620099,1741398562722,-151.0,0.00049541,30]
[355620100,1741398562751,-261.973443,0.00049541,120]
[355620101,1741398562771,-5000.0,0.00049541,120]
[355620102,1741398562790,-2175.52996382,0.00049541,120]
[355620103,1741398573075,-11139.87364189,0.00049541,40]
[355620104,1741398573101,-2824.47003618,0.00049541,120]
[355620105,1741398573123,-2169.28915,0.00049541,120]
[355620106,1741398573144,-151.0,0.00049541,120]
[355620107,1741398573165,-13818.40784581,0.0004955,30]
[355620151,1741398632250,-22121.43566036,0.000495,30]
[355620152,1741398632267,-387.10989545,0.000495,30]
[355620189,1741398638555,-205.79941298,0.00049499,2]
[355620190,1741398638567,-177.8130003,0.00049499,120]
[355620191,1741398638578,-479250.97654805,0.000495,30]
[355620192,1741398638588,-2525.44371103,0.00049541,40]
[355620193,1741398638599,-150.0,0.00049541,2]
[355620194,1741398638608,-3727.7338303,0.00049541,120]
[355620195,1741398638619,-3704.35216948,0.00049541,35]
[355620196,1741398638629,-123272.72705882,0.00049541,120]
[355620197,1741398638638,-648130.44093571,0.00049541,7]
[355620198,1741398638647,-1463.75029104,0.00049541,120]
[355620199,1741398638659,-13163.15236908,0.00049541,30]
[355620200,1741398638669,-2198.00349716,0.00049541,32]
[355620201,1741398638678,-235.07658661,0.00049541,10]
[355620202,1741398638688,-1962.47545797,0.00049541,120]
[355620203,1741398638697,-901.50083975,0.00049541,120]
[355620204,1741398638707,-2052.67132673,0.00049541,30]
[355620205,1741398638716,-1073.96221965,0.00049541,2]
[355620206,1741398638726,-208.43933658,0.00049541,120]
[355620207,1741398638736,-1865.18107503,0.00049541,120]
[355620208,1741398638746,-677.49893109,0.00049541,120]
[355620209,1741398638756,-1504.2715716,0.00049541,60]
[355620210,1741398638765,-240.82074905,0.00049541,120]
[355620211,1741398638776,-1174.35952655,0.00049541,120]
[355620212,1741398638785,-1969.16106737,0.00049541,120]
[355620213,1741398638795,-932.51290679,0.00049541,120]
[355620214,1741398638805,-1776.71222382,0.00049541,120]
[355620215,1741398638814,-325.41410327,0.00049541,30]
[355620216,1741398638823,-935.04215629,0.00049541,120]
[355620217,1741398638832,-851.42521225,0.00049541,120]
[355620218,1741398638841,-1589.53877027,0.00049541,120]
[355620219,1741398638851,-1036.410973,0.00049541,120]
[355620220,1741398638860,-2538.29293205,0.00049541,120]
[355620221,1741398638870,-200.0,0.00049541,10]
[355620222,1741398638879,-19379.79905643,0.00049541,120]
[355620223,1741398638886,-333.20929492,0.00049541,120]
[355620224,1741398638895,-206.49702054,0.00049541,2]
[355620225,1741398638902,-646045.1774038,0.00049541,20]
[355620226,1741398638911,-991.66925184,0.00049541,120]
[355620227,1741398638921,-1683.8283288,0.00049541,120]
[355620228,1741398638930,-439.2385515,0.00049541,120]
[355620229,1741398638940,-2709.0820143,0.00049541,120]
[355620230,1741398638949,-1729.70592566,0.00049541,120]
[355620231,1741398638958,-685.83241554,0.00049541,120]
[355620232,1741398638967,-576.8061555,0.00049541,120]
[355620233,1741398638977,-419.85628534,0.00049541,120]
[355620234,1741398638986,-212.51505363,0.00049541,120]
[355620235,1741398638996,-226.6247845,0.00049541,120]
[355620236,1741398639006,-151.34954187,0.00049541,2]
[355620237,1741398639016,-311.99025448,0.00049541,120]
[355620238,1741398639025,-3486.55385094,0.00049541,2]
[355620239,1741398639035,-200.55334599,0.00049541,120]
[355620240,1741398639044,-2000.0,0.00049541,60]
[355620241,1741398639053,-9350.44029872,0.00049541,2]
[355620242,1741398639063,-823.01614619,0.00049541,120]
[355620243,1741398639072,-2076.77001773,0.00049541,120]
[355620244,1741398639081,-1103.01879321,0.00049541,2]
[355620245,1741398639091,-150.0,0.00049541,2]
[355620246,1741398639101,-68298.88255,0.00049541,30]
[355620247,1741398639111,-1086.0,0.00049541,30]
[355620248,1741398639123,-1000.0,0.00049541,30]
[355620249,1741398639135,-133594.76494759,0.0004955,30]
[355620250,1741398639146,-155.89603517,0.00049554,30]
[355620251,1741398639156,-500.0,0.00049573,10]
[355620252,1741398639167,-500.0,0.00049573,10]
[355620253,1741398639179,-500.0,0.00049573,10]
[355620254,1741398639190,-210.11159199,0.00049573,2]
[355620255,1741398639200,-171.44551073,0.00049573,10]